bitfinex-derivatives/quotes_BTCF0:USTF0_20250402
["timestamp","ask_amount","ask_price","bid_price","bid_amount"]
[1743570908950,0.0592654,84373.0,84370.0,8e-05]
[1743570909151,0.1185462,84362.0,84361.0,0.005]
[1743570909339,0.14369783,84362.0,84361.0,0.005]
[1743570909541,0.15493319,84362.0,84361.0,0.1235476]
[1743570909742,0.29779157,84362.0,84361.0,0.1235476]
[1743570909938,0.29655156,84362.0,84361.0,0.1235476]
[1743570910346,0.29655156,84362.0,84361.0,0.005]
[1743570910543,0.28171741,84362.0,84361.0,0.005]
[1743570910949,0.28271741,84362.0,84361.0,0.005]
[1743570911342,0.29012915,84362.0,84361.0,0.005]
[1743570911851,0.050519,84362.0,84361.0,0.4843476]
[1743570912047,0.04310918,84362.0,84361.0,0.4843476]
[1743570912244,0.04310918,84362.0,84361.0,0.5471476]
[1743570912447,0.02436737,84362.0,84361.0,0.5471476]
[1743570912647,0.002,84362.0,84361.0,0.5787476]
[1743570912849,0.1185371,84369.0,84368.0,0.1185364]
[1743570913058,0.13621327,84369.0,84368.0,0.4793364]
[1743570913448,0.1185371,84369.0,84368.0,0.4793364]
[1743570913752,0.1510371,84369.0,84368.0,0.42751644]
[1743570913958,0.1185392,84367.0,84366.0,0.0628]
[1743570914148,0.13464216,84367.0,84366.0,0.0628]
[1743570914449,0.0592703,84366.0,84361.0,0.3658]
[1743570914652,0.1185448,84363.0,84362.0,0.0328]
[1743570914847,0.01610296,84363.0,84361.0,0.36808]
[1743570915159,0.1840462,84362.0,84361.0,0.36872]
[1743570915456,0.20880032,84362.0,84361.0,0.36644]
[1743570915760,0.34450736,84362.0,84361.0,0.36644]
[1743570916145,0.34650064,84362.0,84361.0,0.36644]
[1743570916346,0.1185504,84359.0,84358.0,0.00047417]
[1743570916552,0.1454578,84359.0,84358.0,0.00047417]
[1743570916750,0.2825684,84359.0,84358.0,0.00047417]
[1743570917651,0.28998045,84359.0,84358.0,0.00047417]
[1743570918357,0.1185575,84354.0,84353.0,0.00719]
[1743570918554,0.1454649,84354.0,84353.0,0.00787]
[1743570918751,0.27749456,84354.0,84353.0,0.00787]
[1743570918954,0.34129456,84354.0,84353.0,0.00787]
[1743570919550,0.34870661,84354.0,84353.0,0.00068]
[1743570920055,0.1185645,84349.0,84348.0,0.3608]
[1743570920251,0.14575189,84349.0,84348.0,0.3608]
[1743570920453,0.27085897,84349.0,84348.0,0.3608]
[1743570920657,0.27827102,84349.0,84348.0,0.3608]
[1743570920857,0.33937102,84349.0,84348.0,0.3608]
[1743570921252,0.18396394,84349.0,84348.0,0.3608]
[1743570921447,0.03459944,84349.0,84348.0,0.4793659]
[1743570921659,0.14575189,84349.0,84348.0,0.4793659]
[1743570921861,0.14575189,84349.0,84348.0,0.3608]
[1743570922170,0.14575189,84349.0,84348.0,0.3949]
[1743570922358,0.13834053,84349.0,84348.0,0.3949]
[1743570922770,0.13934053,84349.0,84348.0,0.3949]
[1743570923062,0.13934053,84349.0,84348.0,1e-07]
[1743570923362,0.42346686,84349.0,84348.0,1e-07]
[1743570923559,0.44021593,84349.0,84348.0,1e-07]
[1743570923749,0.47311593,84349.0,84348.0,1e-07]
[1743570924460,0.49687035,84349.0,84348.0,1e-07]
[1743570925264,0.492037,84349.0,84348.0,1e-07]
[1743570925859,0.45817742,84349.0,84348.0,1e-07]
[1743570926059,0.49551431,84349.0,84348.0,1e-07]
[1743570926254,0.42854068,84349.0,84348.0,1e-07]
[1743570926858,0.42854068,84349.0,84348.0,0.3608001]
[1743570926859,0.25914025,84349.0,84348.0,0.3608001]
[1743570927061,0.25914025,84349.0,84348.0,0.479366]
[1743570927266,0.25914025,84349.0,84348.0,0.3608001]
[1743570927463,0.23182123,84349.0,84348.0,0.3608001]
[1743570927662,0.23182123,84349.0,84348.0,1.0608001]
[1743570927858,0.22440815,84349.0,84348.0,0.3608001]
[1743570928162,0.25670815,84349.0,84348.0,0.3608]
[1743570928363,0.25770815,84349.0,84348.0,0.3608]
[1743570928666,0.1185673,84347.0,84346.0,0.4243]
[1743570928962,0.1201673,84347.0,84346.0,0.4243]
[1743570929662,0.1201673,84347.0,84346.0,0.5428687]
[1743570929852,0.0016,84347.0,84346.0,0.5428687]
[1743570930053,0.0592775,84356.0,84355.0,0.1185561]
[1743570930366,0.0608775,84356.0,84355.0,0.1185561]
[1743570930868,0.0608775,84356.0,84355.0,0.1505561]
[1743570931266,0.0608775,84356.0,84355.0,0.032]
[1743570931855,0.1266631,84356.0,84355.0,0.032]
[1743570932162,0.245222,84356.0,84352.0,0.3608]
[1743570932366,0.1266631,84356.0,84355.0,0.1185561]
[1743570933280,0.0673856,84356.0,84355.0,0.1185561]
[1743570933565,0.1201546,84356.0,84355.0,0.1185561]
[1743570933756,0.1185513,84359.0,84358.0,0.1185518]
[1743570934068,0.1201513,84359.0,84358.0,0.1185518]
[1743570934261,0.0016,84359.0,84358.0,0.1185518]
[1743570934462,0.0016,84359.0,84358.0,0.1508518]
[1743570934662,0.0592738,84361.0,84360.0,0.1778186]
[1743570934960,0.0608738,84361.0,84360.0,0.1778186]
[1743570935360,0.0608738,84361.0,84360.0,0.0592738]
[1743570935863,0.0608738,84361.0,84360.0,0.0902738]
[1743570936067,0.2368613,84361.0,84360.0,0.0902738]
[1743570936467,0.1775875,84361.0,84360.0,0.0902738]
[1743570936859,0.2961351,84361.0,84360.0,0.0902738]
[1743570937259,0.1775875,84361.0,84357.0,0.3608]
[1743570937461,0.1185518,84358.0,84357.0,0.4794304]
[1743570937662,0.2961351,84361.0,84360.0,0.118549]
[1743570938563,0.2961351,84361.0,84360.0,0.13419834]
[1743570938769,0.3304678,84361.0,84360.0,0.13419834]
[1743570940072,0.271195,84361.0,84360.0,0.118549]
[1743570940463,0.1185518,84358.0,84357.0,0.33635258]
[1743570940664,0.1201518,84358.0,84357.0,0.45490578]
[1743570940967,0.1201518,84358.0,84357.0,0.33635258]
[1743570941467,0.1201518,84358.0,84357.0,0.33627258]
[1743570941673,0.31197905,84358.0,84357.0,0.33627258]
[1743570943561,0.31297905,84358.0,84357.0,0.33627258]
[1743570944562,0.1185575,84354.0,84353.0,8e-05]
[1743570944866,0.1201575,84354.0,84353.0,8e-05]
[1743570945565,0.1833575,84354.0,84353.0,8e-05]
[1743570946670,0.1833575,84354.0,84353.0,0.1186389]
[1743570946870,0.1833575,84354.0,84353.0,8e-05]
[1743570948776,0.0336,84354.0,84353.0,0.1186389]
[1743570948970,0.032,84354.0,84353.0,0.1186389]
[1743570949679,0.09535097,84354.0,84353.0,0.1186389]
[1743570950278,0.21390847,84354.0,84353.0,0.1186389]
[1743570950780,0.21390847,84354.0,84353.0,0.1185589]
[1743570950977,0.09535097,84354.0,84353.0,0.1185589]
[1743570951678,0.1522375,84354.0,84353.0,0.1185589]
[1743570951875,0.15227751,84354.0,84353.0,0.1185589]
[1743570952181,0.15227751,84354.0,84353.0,0.13426411]
[1743570953882,0.15227751,84354.0,84353.0,0.14186411]
[1743570955684,0.15227751,84354.0,84353.0,0.14178876]
[1743570957683,0.15227751,84354.0,84353.0,0.13429014]
[1743570958385,0.15227751,84354.0,84353.0,0.01573124]
[1743570958884,0.15227751,84354.0,84353.0,0.13429014]
[1743570959881,0.15227751,84354.0,84353.0,0.1185589]
[1743570960475,0.1185589,84353.0,84352.0,0.1185593]
[1743570960682,0.1185603,84352.0,84351.0,8e-05]
[1743570960884,0.2144603,84352.0,84351.0,0.1185617]
[1743570961383,0.1185631,84350.0,84349.0,0.3608]
[1743570961589,0.1185645,84349.0,84348.0,0.03692]
[1743570961782,0.1837645,84349.0,84348.0,8e-05]
[1743570961990,0.1837645,84349.0,84342.0,0.00047426]
[1743570961991,0.0592849,84346.0,84342.0,0.00047426]
[1743570962185,0.4793729,84343.0,84342.0,0.00055426]
[1743570962388,0.4809729,84343.0,84342.0,0.00047426]
[1743570962692,0.118587,84333.0,84332.0,0.00508]
[1743570962878,0.120187,84333.0,84332.0,0.1236684]
[1743570963078,0.120187,84333.0,84332.0,0.1235884]
[1743570963490,0.0016,84333.0,84332.0,0.1235884]
[1743570963691,0.0331,84334.0,84333.0,0.118587]
[1743570963879,0.0331,84334.0,84333.0,0.1341598]
[1743570964076,0.4793634,84350.0,84349.0,0.1185645]
[1743570964283,0.1201634,84350.0,84349.0,0.1341373]
[1743570964688,0.1185634,84350.0,84349.0,0.1341373]
[1743570964990,0.00017782,84352.0,84351.0,0.1185617]
[1743570965180,0.11873812,84352.0,84351.0,0.1341345]
[1743570965379,0.12041812,84352.0,84351.0,0.1341345]
[1743570966290,0.18441812,84352.0,84351.0,0.1341345]
[1743570967292,0.18441812,84352.0,84351.0,0.0155728]
[1743570967495,0.36087107,84352.0,84351.0,0.0155728]
[1743570967686,0.36087107,84352.0,84351.0,0.1185617]
[1743570968781,0.36087107,84352.0,84351.0,0.13439853]
[1743570969994,0.24205953,84352.0,84351.0,0.13439853]
[1743570970799,0.24205953,84352.0,84351.0,0.1185617]
[1743570971686,0.12349923,84352.0,84351.0,0.1185617]
[1743570971987,0.09279923,84352.0,84351.0,0.1617617]
[1743570972185,0.09279923,84352.0,84351.0,0.2025617]
[1743570973784,0.09279923,84352.0,84351.0,0.9025617]
[1743570973985,0.03515782,84352.0,84351.0,0.9025617]
[1743570974186,0.03347782,84352.0,84351.0,0.9025617]
[1743570974783,0.15203812,84352.0,84351.0,0.9966417]
[1743570975093,0.15371812,84352.0,84351.0,0.8617617]
[1743570975388,0.15371812,84352.0,84351.0,0.18025371]
[1743570975591,0.18551812,84352.0,84351.0,0.06169233]
[1743570975806,0.18551812,84352.0,84351.0,0.0432]
[1743570977293,0.18551812,84352.0,84351.0,0.1617617]
[1743570980494,0.18551812,84352.0,84351.0,0.1185617]
[1743570980989,0.24367991,84352.0,84351.0,0.16144881]
[1743570981398,0.24367991,84352.0,84351.0,0.20034881]
[1743570981399,0.21187991,84352.0,84351.0,0.20034881]
[1743570981599,0.21187991,84352.0,84351.0,0.90034881]
[1743570981795,0.21187991,84352.0,84351.0,0.8574617]
[1743570982206,0.21187991,84352.0,84351.0,0.90035388]
[1743570982498,0.21187991,84352.0,84351.0,0.8574617]
[1743570982705,0.21187991,84352.0,84351.0,0.87395833]
[1743570983003,0.21187991,84352.0,84351.0,0.90035294]
[1743570983893,0.032,84356.0,84355.0,0.1185561]
[1743570984100,0.21174354,84357.0,84356.0,0.1185546]
[1743570984295,0.21174354,84357.0,84356.0,0.22504584]
[1743570984603,0.032,84365.0,84364.0,0.1185434]
[1743570984804,0.032,84365.0,84364.0,0.52223464]
[1743570985001,0.03312001,84365.0,84364.0,0.52283464]
[1743570985398,0.03312001,84365.0,84364.0,0.16203464]
[1743570985703,0.150542,84365.0,84364.0,0.04349124]
[1743570986004,0.15166201,84365.0,84364.0,0.16143464]
[1743570986198,0.15166201,84365.0,84364.0,0.1191434]
[1743570987300,0.15266201,84365.0,84364.0,0.13421937]
[1743570987501,0.15366201,84365.0,84364.0,0.13421937]
[1743570987801,0.15366201,84365.0,84364.0,0.13481937]
[1743570988303,0.15366201,84365.0,84364.0,0.01627597]
[1743570988501,0.15366201,84365.0,84364.0,0.01567597]
[1743570989211,0.15366201,84365.0,84364.0,0.0006]
[1743570989405,0.0592735,84362.0,84357.0,0.0592764]
[1743570989603,0.1185518,84359.0,84358.0,0.1185507]
[1743570990003,0.1807518,84359.0,84358.0,0.1185507]
[1743570990204,0.18187181,84359.0,84358.0,0.1197507]
[1743570990404,0.1807518,84359.0,84358.0,0.1186307]
[1743570992302,0.0622,84359.0,84358.0,0.1186307]
[1743570992609,0.1807504,84359.0,84358.0,0.13458481]
[1743570992809,0.1807504,84359.0,84358.0,0.19838481]
[1743570994610,0.1807504,84359.0,84358.0,0.22418745]
[1743570994811,0.14128878,84360.0,84358.0,0.45038745]
[1743570995011,0.00017782,84373.0,84358.0,0.45038745]
[1743570995012,0.0329,84372.0,84371.0,0.1185336]
[1743570995207,0.0004,84383.0,84377.0,0.0592623]
[1743570995407,0.0004,84383.0,84381.0,0.1185195]
[1743570995408,0.24720513,84382.0,84381.0,0.1185195]
[1743570995609,0.24720513,84382.0,84381.0,0.1191595]
[1743570996115,0.24720513,84382.0,84381.0,0.16350957]
[1743570996312,0.24720513,84382.0,84381.0,0.1819687]
[1743570996507,0.24720513,84382.0,84381.0,0.2461687]
[1743570996808,0.36572323,84382.0,84381.0,0.2139687]
[1743570997013,0.36572323,84382.0,84381.0,0.19550957]
[1743570997415,0.36572323,84382.0,84381.0,0.16244285]
[1743570998420,0.42932323,84382.0,84381.0,0.0527864]
[1743570998607,0.42932323,84382.0,84381.0,0.16180285]
[1743570998911,0.42932323,84382.0,84381.0,0.04417745]
[1743570999416,0.42932323,84382.0,84381.0,0.16205695]
[1743570999718,0.42932323,84382.0,84381.0,0.16373695]
[1743570999719,0.18331811,84382.0,84381.0,0.16373695]
[1743571000101,0.18331811,84382.0,84381.0,0.16473695]
[1743571000820,0.18331811,84382.0,84381.0,0.16273695]
[1743571001213,0.18331811,84382.0,84381.0,0.16368288]
[1743571001613,0.18331811,84382.0,84381.0,0.17923436]
[1743571002006,0.18331811,84382.0,84381.0,0.21439152]
[1743571002924,0.18331811,84382.0,84381.0,0.09587202]
[1743571003821,0.18331811,84382.0,84381.0,0.21439152]
[1743571004314,0.18331811,84382.0,84381.0,0.21539152]
[1743571004622,0.18331811,84382.0,84381.0,0.21639152]
[1743571005919,0.18331811,84382.0,84381.0,0.18123436]
[1743571006117,0.31632703,84382.0,84381.0,0.18123436]
[1743571006328,0.31632703,84382.0,84381.0,0.18023436]
[1743571006507,0.31632703,84382.0,84381.0,0.18123436]
[1743571007119,0.31632703,84382.0,84381.0,0.18010092]
[1743571007311,0.31632703,84382.0,84381.0,0.18110092]
[1743571008222,0.31632703,84382.0,84381.0,0.06158142]
[1743571009110,0.31632703,84382.0,84381.0,0.06018415]
[1743571009513,0.31632703,84382.0,84381.0,0.04463267]
[1743571009711,0.31632703,84382.0,84381.0,0.04563267]
[1743571010118,0.31632703,84382.0,84381.0,0.04495267]
[1743571010515,0.1185294,84374.0,84360.0,0.23145355]
[1743571010717,0.48044941,84374.0,84373.0,0.0272396]
[1743571011028,0.61793771,84374.0,84373.0,0.00017782]
[1743571011522,0.67933771,84374.0,84373.0,0.00017782]
[1743571013217,0.67933771,84374.0,84373.0,0.00117782]
[1743571014016,0.68033771,84374.0,84373.0,0.00017782]
[1743571014718,0.67933771,84374.0,84373.0,0.00017782]
[1743571014920,0.1185308,84373.0,84372.0,0.02963]
[1743571015222,0.11965081,84373.0,84372.0,0.02963]
[1743571015421,0.31191137,84373.0,84372.0,0.02963]
[1743571016223,0.31291137,84373.0,84372.0,0.02963]
[1743571017525,0.31391137,84373.0,84372.0,0.02963]
[1743571017822,0.03372001,84373.0,84372.0,0.1481622]
[1743571018022,0.06562001,84373.0,84372.0,0.1487622]
[1743571018226,0.09822001,84373.0,84372.0,0.17452653]
[1743571018731,0.21675081,84373.0,84372.0,0.17452653]
[1743571018928,0.21675081,84373.0,84372.0,0.1487622]
[1743571019125,0.21675081,84373.0,84372.0,0.1794622]
[1743571019828,0.21575081,84373.0,84372.0,0.1794622]
[1743571020234,0.18315081,84373.0,84372.0,0.1794622]
[1743571020722,0.18315081,84373.0,84372.0,0.2098622]
[1743571022423,0.18315081,84373.0,84372.0,0.22589077]
[1743571023929,0.18315081,84373.0,84372.0,0.19549077]
[1743571025529,0.18315081,84373.0,84372.0,0.04732857]
[1743571025732,0.31544157,84373.0,84372.0,0.13516077]
[1743571026029,0.31544157,84373.0,84372.0,0.16576077]
[1743571026229,0.31544157,84373.0,84372.0,0.19158732]
[1743571027230,0.31544157,84373.0,84372.0,0.22458732]
[1743571027430,0.31544157,84373.0,84372.0,0.22480493]
[1743571030123,0.31544157,84373.0,84372.0,0.19891402]
[1743571030631,0.31544157,84373.0,84372.0,0.08038182]
[1743571030832,0.31544157,84373.0,84372.0,0.04738182]
[1743571031023,0.31544157,84373.0,84372.0,0.19165833]
[1743571031724,0.31544157,84373.0,84372.0,0.04252613]
[1743571031920,0.31544157,84373.0,84372.0,0.01678182]
[1743571032121,0.31544157,84373.0,84372.0,0.01618182]
[1743571034635,0.1185322,84372.0,84371.0,0.02963]
[1743571034833,0.1196922,84372.0,84371.0,0.04584648]
[1743571035028,0.6729247,84372.0,84371.0,0.04584648]
[1743571037231,0.73055888,84372.0,84371.0,0.04584648]
[1743571037934,0.73055888,84372.0,84371.0,0.04571224]
[1743571039540,0.74133679,84372.0,84371.0,0.07180122]
[1743571040834,0.38053679,84372.0,84371.0,0.07180122]
[1743571041139,0.74133679,84372.0,84371.0,0.07180122]
[1743571042123,0.74133679,84372.0,84371.0,0.04571224]
[1743571042923,0.73055888,84372.0,84371.0,0.02963]
[1743571043327,0.73055888,84372.0,84371.0,0.04577516]
[1743571043532,0.73055888,84372.0,84371.0,0.02963]
[1743571043834,0.74138307,84372.0,84371.0,0.02963]
[1743571044033,0.73055888,84372.0,84371.0,0.02963]
[1743571044227,0.74138307,84372.0,84371.0,0.04577489]
[1743571044428,0.73055888,84372.0,84371.0,0.04577489]
[1743571044623,0.74138266,84372.0,84371.0,0.0457708]
[1743571045843,0.74138266,84372.0,84371.0,0.04577312]
[1743571046139,0.74138239,84372.0,84371.0,0.04577312]
[1743571046737,0.74138239,84372.0,84365.0,0.0327]
[1743571046738,0.118542,84365.0,84364.0,0.00025782]
[1743571046942,0.1185561,84355.0,84354.0,0.0326]
[1743571047245,0.48047611,84355.0,84354.0,0.07532871]
[1743571047938,0.48047611,84355.0,84348.0,0.21300124]
[1743571047939,0.1185645,84349.0,84348.0,0.21300124]
[1743571048142,0.1185715,84344.0,84343.0,0.28406207]
[1743571048326,0.4808515,84344.0,84343.0,0.28554207]
[1743571048531,0.60513933,84344.0,84343.0,0.28554207]
[1743571048742,0.60513933,84344.0,84343.0,0.28406207]
[1743571048944,0.66693933,84344.0,84343.0,0.34466207]
[1743571049333,0.66693933,84344.0,84343.0,0.34566207]
[1743571049537,0.66693933,84344.0,84343.0,0.0616]
[1743571049742,0.66693933,84344.0,84343.0,0.061]
[1743571050033,0.66693933,84344.0,84343.0,0.2109729]
[1743571050236,0.63533933,84344.0,84343.0,0.2109729]
[1743571050741,0.63533933,84344.0,84343.0,0.22640209]
[1743571051128,0.63533933,84344.0,84343.0,0.10842919]
[1743571051335,0.63533933,84344.0,84343.0,0.093]
[1743571051635,0.63533933,84344.0,84343.0,0.0924]
[1743571051837,0.63533933,84344.0,84343.0,0.093]
[1743571052231,0.63533933,84344.0,84343.0,0.0924]
[1743571052841,0.63533933,84344.0,84343.0,0.09308]
[1743571053138,0.63533933,84344.0,84343.0,0.0924]
[1743571054843,0.63533933,84344.0,84343.0,0.09388]
[1743571055529,0.63533933,84344.0,84343.0,0.06248]
[1743571055737,0.63533933,84344.0,84343.0,0.061]
[1743571055936,0.63533933,84344.0,84343.0,0.001]
[1743571057127,0.66533933,84344.0,84343.0,0.001]
[1743571058941,0.66533933,84344.0,84343.0,0.0311]
[1743571060237,0.60513933,84344.0,84343.0,0.1811729]
[1743571060545,0.60513933,84344.0,84343.0,0.19754483]
[1743571060931,0.60513933,84344.0,84343.0,0.19814483]
[1743571061136,0.60513933,84344.0,84343.0,0.09814483]
[1743571061445,0.60513933,84344.0,84343.0,0.03189844]
[1743571061645,0.60513933,84344.0,84343.0,0.05828888]
[1743571061854,0.63833933,84344.0,84343.0,0.05828888]
[1743571062243,0.63833933,84344.0,84343.0,0.03189844]
[1743571062551,0.67013933,84344.0,84343.0,0.03189844]
[1743571064144,0.67013933,84344.0,84343.0,0.032064]
[1743571064342,0.67013933,84344.0,84343.0,0.03206468]
[1743571067039,0.67013933,84344.0,84343.0,0.03195154]
[1743571067442,0.67013933,84344.0,84343.0,0.01642503]
[1743571067948,0.55156783,84344.0,84342.0,0.00047426]
[1743571068146,0.1503729,84343.0,84342.0,0.00047426]
[1743571068353,0.1518529,84343.0,84342.0,0.00047426]
[1743571068650,0.31914791,84343.0,84342.0,0.00047426]
[1743571070051,0.118587,84333.0,84331.0,0.0301]
[1743571070246,0.480867,84333.0,84332.0,0.03139765]
[1743571070547,0.480867,84333.0,84332.0,0.03079765]
[1743571070952,0.545067,84333.0,84332.0,0.06089765]
[1743571071346,0.546067,84333.0,84332.0,0.06089765]
[1743571071743,0.546067,84333.0,84332.0,0.005]
[1743571072149,0.547067,84333.0,84332.0,0.005]
[1743571074055,0.547067,84333.0,84332.0,0.02050211]
[1743571074550,0.546067,84333.0,84332.0,0.05080211]
[1743571074756,0.545067,84333.0,84332.0,0.05080211]
[1743571074952,0.545067,84333.0,84332.0,0.07694174]
[1743571077155,0.545067,84333.0,84332.0,0.04664174]
[1743571077358,0.184267,84333.0,84332.0,0.04664174]
[1743571077655,0.545067,84333.0,84332.0,0.04664174]
[1743571078049,0.545067,84333.0,84332.0,0.04661574]
[1743571078251,0.60272575,84333.0,84332.0,0.04661574]
[1743571078865,0.60272575,84333.0,84332.0,0.07991574]
[1743571080059,0.60272575,84333.0,84332.0,0.0962421]
[1743571080261,0.60272575,84333.0,84332.0,0.0629421]
[1743571080659,0.60272575,84333.0,84332.0,0.04743999]
[1743571081763,0.60272575,84333.0,84332.0,0.02132636]
[1743571082665,0.545067,84333.0,84332.0,0.02132636]
[1743571083367,0.545067,84333.0,84332.0,0.02106824]
[1743571083563,0.545067,84333.0,84319.0,0.1186057]
[1743571083564,0.1185954,84327.0,84326.0,0.01447435]
[1743571083748,0.1200754,84327.0,84326.0,0.01447435]
[1743571083953,0.1200754,84327.0,84326.0,0.00055435]
[1743571084165,0.1200754,84327.0,84326.0,0.00047435]
[1743571084369,0.2142754,84327.0,84326.0,0.00047435]
[1743571085263,0.2152754,84327.0,84326.0,0.00047435]
[1743571085461,0.03338,84327.0,84326.0,0.11967115]
[1743571085654,0.1210754,84327.0,84326.0,0.54397115]
[1743571085853,0.1210754,84327.0,84326.0,0.21327115]
[1743571086262,0.1200754,84327.0,84326.0,0.21327115]
[1743571086665,0.35431723,84327.0,84326.0,0.23903947]
[1743571087362,0.23572183,84327.0,84326.0,0.23903911]
[1743571087555,0.33013737,84332.0,84331.0,0.1185898]
[1743571087752,0.059291,84337.0,84333.0,0.0592934]
[1743571087960,0.1185828,84336.0,84335.0,0.1185842]
[1743571088364,0.1185828,84336.0,84335.0,0.1495842]
[1743571088563,0.1499028,84336.0,84335.0,0.8501842]
[1743571088966,0.1491828,84336.0,84335.0,0.8501842]
[1743571089759,0.64740153,84336.0,84335.0,0.0006]
[1743571090059,0.71140153,84336.0,84335.0,0.0006]
[1743571090260,0.1185842,84335.0,84334.0,8e-05]
[1743571090463,0.1185912,84330.0,84329.0,0.0641]
[1743571090661,0.1185912,84330.0,84329.0,0.031]
[1743571090857,0.1185954,84327.0,84326.0,0.00047435]
[1743571091062,0.4793954,84327.0,84326.0,0.00047435]
[1743571091263,0.4793954,84327.0,84326.0,0.00055435]
[1743571091462,0.4793954,84327.0,84326.0,0.00047435]
[1743571095563,0.4801154,84327.0,84326.0,0.00107435]
[1743571096268,0.4801154,84327.0,84326.0,0.00047435]
[1743571102579,0.4801154,84327.0,84326.0,0.00115435]
[1743571102873,0.1185968,84326.0,84322.0,0.0141]
[1743571103075,0.118601,84323.0,84322.0,0.01402]
[1743571103371,0.119521,84323.0,84322.0,0.01402]
[1743571103567,0.25605533,84323.0,84322.0,0.01402]
[1743571103768,0.1186024,84322.0,84321.0,8e-05]
[1743571103967,0.1819224,84322.0,84321.0,0.00068]
[1743571104172,0.30570473,84322.0,84321.0,8e-05]
[1743571105580,0.30570473,84322.0,84321.0,0.00068]
[1743571105972,0.30670473,84322.0,84321.0,0.00068]
[1743571106170,0.30670473,84322.0,84321.0,8e-05]
[1743571108287,0.44804721,84322.0,84321.0,8e-05]
[1743571109569,0.44704721,84322.0,84321.0,8e-05]
[1743571109769,0.44804721,84322.0,84321.0,8e-05]
[1743571112582,0.20566248,84322.0,84321.0,0.1186839]
[1743571112785,0.29426488,84322.0,84321.0,0.5595256]
[1743571113690,0.29426488,84322.0,84321.0,0.58549576]
[1743571114378,0.42810947,84322.0,84321.0,0.41902141]
[1743571114577,0.42810947,84322.0,84321.0,0.53762531]
[1743571114976,0.42810947,84322.0,84321.0,0.57092531]
[1743571115285,0.28676699,84322.0,84321.0,0.57092531]
[1743571115785,0.28676699,84322.0,84321.0,0.54495515]
[1743571116379,0.1529224,84322.0,84321.0,0.03225125]
[1743571116577,0.28371068,84322.0,84321.0,0.03157125]
[1743571116789,0.28371068,84322.0,84321.0,0.01562955]
[1743571117081,0.1186053,84320.0,84319.0,0.01412]
[1743571117388,0.1195253,84320.0,84319.0,0.01412]
[1743571117580,0.24898435,84320.0,84319.0,0.01472]
[1743571117776,0.24898435,84320.0,84319.0,0.01412]
[1743571117973,0.24898435,84320.0,84319.0,0.01404]
[1743571118482,0.25098435,84320.0,84319.0,0.01404]
[1743571119573,0.25098435,84320.0,84319.0,0.01464]
[1743571120288,0.25098435,84320.0,84319.0,0.04524]
[1743571120480,0.25098435,84320.0,84319.0,0.04584]
[1743571121382,0.24898435,84320.0,84319.0,0.04584]
[1743571121886,0.24898435,84320.0,84319.0,0.1638467]
[1743571122186,0.1195253,84320.0,84319.0,0.1644867]
[1743571122889,0.1195253,84320.0,84319.0,0.1945867]
[1743571123192,0.1195253,84320.0,84319.0,0.07598]
[1743571124593,0.1195253,84320.0,84319.0,0.1945867]
[1743571124791,0.1195253,84320.0,84319.0,0.1332867]
[1743571126987,0.1195253,84320.0,84319.0,0.1192467]
[1743571127681,0.1195253,84320.0,84319.0,0.1809067]
[1743571127887,0.1195253,84320.0,84319.0,0.1815067]
[1743571131884,0.1195253,84320.0,84319.0,0.5423067]
[1743571132088,0.00092,84320.0,84319.0,0.5731067]
[1743571132388,0.1510024,84322.0,84321.0,0.1186039]
[1743571132589,0.1516424,84322.0,84321.0,0.1192039]
[1743571134988,0.03304,84322.0,84321.0,0.1192039]
[1743571135200,0.1516424,84322.0,84321.0,0.1192039]
[1743571135998,0.03304,84322.0,84321.0,0.1192039]
[1743571136190,0.0324,84322.0,84321.0,0.1192039]
[1743571136600,0.03304,84322.0,84321.0,0.1192039]
[1743571136793,0.0324,84322.0,84321.0,0.1192039]
[1743571137301,0.03304,84322.0,84321.0,0.1192039]
[1743571141101,0.06434,84322.0,84321.0,0.1192039]
[1743571141701,0.1829424,84322.0,84321.0,0.1192039]
[1743571141906,0.06434,84322.0,84321.0,0.1192039]
[1743571143203,0.1829424,84322.0,84321.0,0.1192039]
[1743571143615,0.1829424,84322.0,84321.0,0.2268039]
[1743571144603,0.1829424,84322.0,84321.0,0.1192039]
[1743571150506,0.31300197,84322.0,84321.0,0.1192039]
[1743571152421,0.4544542,84322.0,84321.0,0.1192039]
[1743571152920,0.32439463,84322.0,84321.0,0.1192039]
[1743571153116,0.32439463,84322.0,84321.0,0.1495039]
[1743571154008,0.20579223,84322.0,84321.0,0.1495039]
[1743571154313,0.17449223,84322.0,84321.0,0.16511204]
[1743571154515,0.17449223,84322.0,84321.0,0.19601204]
[1743571154819,0.17449223,84322.0,84321.0,0.89601204]
[1743571155219,0.17449223,84322.0,84321.0,0.19601204]
[1743571158220,0.03304,84322.0,84321.0,0.19601204]
[1743571159413,0.0324,84322.0,84321.0,0.16511204]
[1743571159617,0.03304,84322.0,84321.0,0.16511204]
[1743571159820,0.03304,84322.0,84321.0,0.16510137]
[1743571160322,0.1516424,84322.0,84321.0,0.16510137]
[1743571160520,0.03304,84322.0,84321.0,0.16510137]
[1743571161026,0.1516424,84322.0,84321.0,0.16510137]
[1743571161225,0.03304,84322.0,84321.0,0.16510137]
[1743571161428,0.0324,84322.0,84321.0,0.19580137]
[1743571161925,0.0324,84322.0,84321.0,0.30020137]
[1743571162314,0.0324,84322.0,84321.0,0.31572693]
[1743571162516,0.03308,84322.0,84321.0,0.31572693]
[1743571162712,0.06498,84322.0,84321.0,0.31587324]
[1743571162917,0.1835824,84322.0,84321.0,0.31587324]
[1743571163112,0.1835824,84322.0,84321.0,0.28517324]
[1743571163331,0.1835824,84322.0,84321.0,0.25655324]
[1743571164718,0.1835824,84322.0,84321.0,0.25755324]
[1743571165118,0.1835824,84322.0,84321.0,0.26055324]
[1743571165921,0.1835824,84322.0,84321.0,0.26155324]
[1743571166520,0.1835824,84322.0,84321.0,0.26055324]
[1743571166719,0.1835824,84322.0,84321.0,0.24480946]
[1743571166928,0.1835824,84322.0,84321.0,0.26056761]
[1743571167329,0.1835824,84322.0,84321.0,0.24480946]
[1743571167929,0.1835824,84322.0,84321.0,0.26049864]
[1743571168733,0.1835824,84322.0,84321.0,0.24480946]
[1743571168922,0.1835824,84322.0,84321.0,0.26049838]
[1743571169728,0.1835824,84322.0,84321.0,0.24497282]
[1743571170330,0.1835824,84322.0,84321.0,0.14089282]
[1743571170834,0.1835824,84322.0,84321.0,0.1252039]
[1743571172028,0.1835824,84322.0,84321.0,0.1232039]
[1743571172732,0.1835824,84322.0,84321.0,0.1212039]
[1743571172930,0.1835824,84322.0,84321.0,0.1232039]
[1743571173825,0.1835824,84322.0,84321.0,0.15465273]
[1743571174428,0.1835824,84322.0,84321.0,0.15265273]
[1743571174630,0.1835824,84322.0,84321.0,0.15465273]
[1743571175233,0.1835824,84322.0,84321.0,0.15265273]
[1743571175431,0.1835824,84322.0,84321.0,0.15465273]